[Event "European Women-ch 2023"]
[Site "Petrovac"]
[Date "2023.03.25"]
[Round "7.22"]
[White "Buchholz, Maja Patricia"]
[Black "Humbatova, Nazli"]
[Result "1-0"]
[Annotator "NA RC COMBH"]
[ECO "A29"]
[WhiteElo "1883"]
[BlackElo "1737"]
[PlyCount "85"]
[EventDate "2023.03.15"]
[EventType "swiss"]
[EventCountry "MNE"]
[SourceTitle "playchess.com"]
[Source "ChessBase"]
[SourceQuality "1"]
[TimeControl "40/5400+30:1800+30"]

1. c4 {[%emt 0:00:01]} e5 {[%emt 0:00:07]} 2. g3 {[%emt 0:00:09]} Nf6 {[%emt 0:00:08]} 3. Bg2 {[%emt 0:00:11]} d5 {[%emt 0:00:11]} 4. cxd5 {[%emt 0:00:16]} Nxd5 {[%emt 0:00:06]} 5. Nc3 {[%emt 0:00:07]} Nb6 {[%emt 0:00:10]} 6. Nf3 {[%emt 0:00:32]} Nc6 {[%emt 0:00:41]} 7. Rb1 {[%emt 0:00:34]} a5 {[%emt 0:03:05]} 8. O-O {[%emt 0:03:12]} Be7 {[%emt 0:00:15]} 9. d3 {[%emt 0:03:08]} O-O {[%emt 0:01:17]} 10. Be3 {[%emt 0:01:14]} Be6 {[%emt 0:02:50]} 11. Qc1 {[%emt 0:04:38]} f6 {[%emt 0:08:59]} 12. Rd1 {[%emt 0:01:49]} Nd4 {[%emt 0:10:31]} 13. b3 {[%emt 0:08:23]} c5 {[%emt 0:06:56]} 14. Qb2 {[%emt 0:04:54]} Qd7 {[%emt 0:17:28]} 15. Nd2 {[%emt 0:05:07]} a4 {[%emt 0:15:02]} 16. Nc4 {[%emt 0:02:32]} Nxc4 {[%emt 0:02:10]} 17. bxc4 {[%emt 0:01:14]} Rfb8 {[%emt 0:06:06]} 18. Nd5 {[%emt 0:06:05]} a3 {[%emt 0:03:31]} 19. Qd2 {[%emt 0:01:07]} Bd8 {[%emt 0:00:36]} 20. Bxd4 {[%emt 0:03:06]} cxd4 {[%emt 0:01:49]} 21. Nb6 {[%emt 0:03:21]} Bxb6 {[%emt 0:00:05]} 22. Rxb6 {[%emt 0:00:09]} Bf7 {[%emt 0:11:04]} 23. Rdb1 {[%emt 0:01:17]} Ra7 {[%emt 0:01:57]} 24. Qb4 {[%emt 0:03:47]} f5 {[%emt 0:05:27]} 25. Rb3 {[%emt 0:04:27]} e4 {[%emt 0:01:54]} 26. Rxa3 {[%emt 0:03:23]} Rxa3 {[%emt 0:00:18]} 27. Qxa3 {[%emt 0:00:04]} Bg6 {[%emt 0:00:24]} 28. Qb3 {[%emt 0:02:32]} Qe7 {[%emt 0:00:33]} 29. a4 {[%emt 0:04:11]} exd3 {[%emt 0:00:49]} 30. Bd5+ {[%emt 0:02:00]} Bf7 {[%emt 0:00:20]} 31. Qxd3 {[%emt 0:07:21]} Bxd5 {[%emt 0:00:09]} 32. cxd5 {[%emt 0:00:08]} g6 {[%emt 0:00:42]} 33. Qxd4 {[%emt 0:01:17]} Qxe2 {[%emt 0:00:09]} 34. Re6 {[%emt 0:00:27]} Qh5 {[%emt 0:00:32]} 35. Re7 {[%emt 0:01:48]} Qh6 {[%emt 0:00:05]} 36. d6 {[%emt 0:00:47]} Qf8 {[%emt 0:01:05]} 37. Qh4 {[%emt 0:01:05]} h6 {[%emt 0:00:16]} 38. Qc4+ {[%emt 0:00:22]} Kh8 {[%emt 0:00:05]} 39. Qd4+ {[%emt 0:00:03]} Kg8 {[%emt 0:00:09]} 40. Qd5+ {[%emt 0:00:00]} Kh8 {[%emt 0:00:00]} 41. Qe5+ {[%emt 0:00:04]} Kg8 {[%emt 0:00:12]} 42. Qe6+ {[%emt 0:00:03]} Kh8 {[%emt 0:00:29]} 43. Qxg6 {[%emt 0:00:05]} 1-0

[Event "European Women-ch 2023"]
[Site "Petrovac"]
[Date "2023.03.25"]
[Round "7.23"]
[White "Eric, Jovana"]
[Black "Valkova, Angelika"]
[Result "1-0"]
[Annotator "TA"]
[ECO "C42"]
[WhiteElo "2230"]
[BlackElo "2055"]
[PlyCount "69"]
[EventDate "2023.03.15"]
[EventType "swiss"]
[EventCountry "MNE"]
[SourceTitle "playchess.com"]
[Source "ChessBase"]
[SourceQuality "1"]
[TimeControl "40/5400+30:1800+30"]

{[%evp 15,69,28,28,28,31,24,28,28,31,8,9,6,14,22,23,20,60,74,57,58,69,61,70,48,86,47,81,54,67,34,63,45,80,72,66,9,14,0,66,66,201,201,176,183,726,724,704,695,762,746,29980,29981,29975,29974,1972,1358]} 1. e4 {[%emt 0:00:03]} e5 {[%emt 0:00:05]} 2. Nf3 {[%emt 0:00:08]} Nf6 {[%emt 0:00:07]} 3. Nxe5 {[%emt 0:00:18]} d6 {[%emt 0:00:06]} 4. Nf3 {[%emt 0:00:04]} Nxe4 {[%emt 0:00:05]} 5. Nc3 {[%emt 0:00:15]} Nxc3 {[%emt 0:00:10]} 6. dxc3 {[%emt 0:00:05]} Be7 {[%emt 0:00:23]} 7. Be3 {[%emt 0:00:46]} Nc6 {[%emt 0:00:45]} 8. Qd2 {[%emt 0:00:34]} Be6 {[%emt 0:00:53]} 9. O-O-O {[%emt 0:02:01] C42: Petroff Defence: 3 Nxe5 and unusual White 3rd moves.} Qd7 {[%emt 0:01:00]} (9... Bxa2 $2 10. b3 $16) 10. Kb1 {[%emt 0:01:14]} Bf6 {[%emt 0:02:53]} 11. h3 {[%emt 0:05:02] White has an edge.} h6 {[%emt 0:10:34]} 12. g4 {[%emt 0:04:09]} O-O-O {[%emt 0:15:51]} 13. Bg2 {[%emt 0:03:39]} Kb8 {[%emt 0:08:11]} 14. Rhe1 {[%emt 0:04:13]} Rhe8 {[%emt 0:02:47]} 15. b3 $1 {[%emt 0:03:54] [#]} g5 $146 {[%emt 0:03:52]} ({Predecessor:} 15... a6 16. Re2 Re7 17. Nd4 Bxd4 18. cxd4 d5 19. Rde1 h5 20. f3 f6 21. Bf2 Rde8 {½-½ Horwitz,D (2291)-Azevedo,J (2285) MT-Esko sf03 email 2017 [1]}) 16. Nd4 {[%emt 0:11:47]} Bxd4 {[%emt 0:06:14]} 17. cxd4 {[%emt 0:04:56]} (17. Bxd4 Nxd4 18. Qxd4 f5 $11) 17... d5 {[%emt 0:00:17]} 18. f4 {[%emt 0:01:04]} f6 $1 {[%emt 0:02:18]} 19. Rf1 {[%emt 0:01:47]} Qg7 {[%emt 0:08:39]} 20. Rf3 {[%emt 0:04:14]} Rd7 {[%emt 0:08:17]} 21. Rdf1 {[%emt 0:03:45]} Rde7 {[%emt 0:00:24]} 22. Rg3 {[%emt 0:12:55]} Nd8 {[%emt 0:03:31]} 23. a4 {[%emt 0:03:44]} c6 {[%emt 0:04:35]} 24. Bg1 {[%emt 0:04:08]} Bg8 {[%emt 0:01:56]} 25. fxg5 {[%emt 0:07:39]} (25. Re3 $14) 25... fxg5 $11 {[%emt 0:00:33]} 26. Bh2 {[%emt 0:00:35]} Ka8 {[%emt 0:00:16]} (26... Kc8 $1 $11) 27. Rf2 $1 $14 {[%emt 0:01:36]} c5 {[%emt 0:03:12] [#] A mistake that costs the game.} 28. Rc3 $1 $18 {[%emt 0:00:53][%cal Bg3c3,Bc3c5,Bc5c6,Bc6c7,Bc7e7][%mdl 32] Threatens to win with Be5.} Nc6 {[%emt 0:05:41] Inhibits Be5.} 29. Rxc5 {[%emt 0:04:38]} Nxd4 $2 {[%emt 0:01:03] [#]} (29... Qxd4 30. Qxd4 Nxd4 31. Bxd5 Bxd5) 30. Qc3 $1 {[%emt 0:00:30]} ({Worse is} 30. Bxd5 Nxb3 31. cxb3 Re1+ 32. Rc1 Rxc1+ 33. Qxc1 (33. Kxc1 $2 {loses.} Qa1+ 34. Kc2 Bxd5 $19) 33... Bxd5 $15) 30... Nc6 {[%emt 0:05:25]} 31. Rxc6 {[%emt 0:00:54] White threatens Rc8+ and mate.} (31. Bxd5 $2 {perishes.} Qxc3 32. Rxc3 Bxd5 $19) 31... Re1+ {[%emt 0:01:27]} 32. Kb2 {[%emt 0:00:52]} Qd7 {[%emt 0:01:02]} 33. Rc7 {[%emt 0:02:13]} Qd8 {[%emt 0:00:25]} 34. Qb4 {[%emt 0:01:01][%csl Gc7][%cal Rb4b7]} Qb8 {[%emt 0:01:20] [#]} 35. Re7 $3 {[%emt 0:01:32][%mdl 512] Weighted Error Value: White=0.09 (flawless) /Black=0.44} 1-0

[Event "European Women-ch 2023"]
[Site "Petrovac"]
[Date "2023.03.25"]
[Round "7.23"]
[White "Bassari, Senem Gul"]
[Black "Popovic, Mateja"]
[Result "1-0"]
[Annotator "NA RC COMBH"]
[ECO "B80"]
[WhiteElo "1524"]
[BlackElo "1832"]
[PlyCount "135"]
[EventDate "2023.03.15"]
[EventType "swiss"]
[EventCountry "MNE"]
[SourceTitle "playchess.com"]
[Source "ChessBase"]
[SourceQuality "1"]
[TimeControl "40/5400+30:1800+30"]

1. e4 {[%emt 0:00:05]} c5 {[%emt 0:00:12]} 2. Nf3 {[%emt 0:00:24]} Nc6 {[%emt 0:00:08]} 3. d4 {[%emt 0:00:12]} cxd4 {[%emt 0:00:15]} 4. Nxd4 {[%emt 0:00:12]} e6 {[%emt 0:00:06]} 5. Nc3 {[%emt 0:00:17]} Qc7 {[%emt 0:00:07]} 6. g3 {[%emt 0:00:11]} a6 {[%emt 0:00:37]} 7. Bg2 {[%emt 0:00:10]} Nf6 {[%emt 0:01:14]} 8. O-O {[%emt 0:00:15]} Be7 {[%emt 0:10:36]} 9. Re1 {[%emt 0:00:13]} d6 {[%emt 0:03:16]} 10. Nxc6 {[%emt 0:00:15]} bxc6 {[%emt 0:00:23]} 11. e5 {[%emt 0:00:36]} dxe5 {[%emt 0:01:16]} 12. Rxe5 {[%emt 0:00:36]} O-O {[%emt 0:03:55]} 13. Re1 {[%emt 0:08:50]} Rd8 {[%emt 0:05:02]} 14. Qf3 {[%emt 0:05:35]} Bb7 {[%emt 0:01:06]} 15. Bf4 {[%emt 0:06:06]} Bd6 {[%emt 0:02:40]} 16. Bg5 {[%emt 0:10:38]} Be7 {[%emt 0:04:19]} 17. Bf4 {[%emt 0:03:24]} Bd6 {[%emt 0:03:06]} 18. Bg5 {[%emt 0:01:25]} Be7 {[%emt 0:01:58]} 19. Bf4 {[%emt 0:13:23]} Qa5 {[%emt 0:08:20]} 20. a3 {[%emt 0:15:13]} Bd6 {[%emt 0:05:48]} 21. b4 {[%emt 0:04:44]} Qf5 {[%emt 0:01:40]} 22. Bxd6 Qxf3 {[%emt 0:00:30]} 23. Bxf3 {[%emt 0:04:57]} Rxd6 {[%emt 0:00:13]} 24. Na4 {[%emt 0:05:05]} Rad8 25. Nc5 Bc8 26. Be2 Rd2 27. Bd3 Ng4 28. Ne4 R2xd3 29. cxd3 Rxd3 30. Rad1 Rd5 31. Nc3 Rd7 32. Rxd7 Bxd7 33. Rd1 Nf6 34. Ne4 Nd5 35. Nc3 Kf8 36. Nxd5 exd5 37. f4 Ke7 38. Kf2 Kd6 39. Rc1 Bf5 40. Ke3 Bh3 41. Kd4 g6 42. Re1 Be6 43. Re3 h5 44. Re1 Bd7 45. Rc1 Bg4 46. Rc5 Bh3 47. a4 Be6 48. b5 cxb5 49. axb5 axb5 50. Rxb5 Kc6 51. Ra5 Kd6 52. Ra6+ Ke7 53. Ke5 Kd7 54. Rb6 Kc7 55. Rd6 Kc8 56. Kd4 Kb7 57. Rxd5 Bxd5 58. Kxd5 Kc7 59. Ke5 Kd7 60. f5 {[%emt 0:47:46]} Ke7 {[%emt 1:05:14]} 61. h4 {[%emt 0:19:41]} f6+ {[%emt 0:12:25]} 62. Kf4 {[%emt 0:00:36]} Kf7 {[%emt 0:00:23]} 63. Ke4 {[%emt 0:00:30]} g5 {[%emt 0:00:30]} 64. Kd5 {[%emt 0:00:30]} Ke7 {[%emt 0:00:30]} 65. Kc6 {[%emt 0:00:30]} Kf7 {[%emt 0:00:30]} 66. Kd7 {[%emt 0:00:30]} Kf8 {[%emt 0:00:30]} 67. Ke6 {[%emt 0:00:30]} Kg7 {[%emt 0:00:30]} 68. Ke7 {[%emt 0:00:30]} 1-0

[Event "European Women-ch 2023"]
[Site "Petrovac"]
[Date "2023.03.25"]
[Round "7.24"]
[White "Dylag, Emilia"]
[Black "Mamedjarova, Turkan"]
[Result "0-1"]
[Annotator "TA"]
[ECO "D34"]
[WhiteElo "2052"]
[BlackElo "2229"]
[PlyCount "77"]
[EventDate "2023.03.15"]
[EventType "swiss"]
[EventCountry "MNE"]
[SourceTitle "playchess.com"]
[Source "ChessBase"]
[SourceQuality "1"]
[TimeControl "40/5400+30:1800+30"]

{[%evp 19,77,33,25,0,0,0,39,0,0,0,0,0,0,-9,-19,-18,-26,-18,-20,-78,-79,-85,-73,-95,-77,-97,-43,-98,-97,-97,-84,-95,-83,-80,-81,-110,-102,-105,-104,-111,-108,-93,-86,-100,-88,-85,-91,-97,0,-129,-129,-133,-131,-214,-220,-317,-214,-1355,-1363,-1194]} 1. d4 {[%emt 0:00:04]} d5 {[%emt 0:00:22]} 2. c4 {[%emt 0:00:12]} e6 {[%emt 0:00:05]} 3. Nf3 {[%emt 0:00:13]} Nf6 {[%emt 0:00:11]} 4. g3 {[%emt 0:00:19]} c5 {[%emt 0:01:03]} 5. Bg2 {[%emt 0:00:52]} Nc6 {[%emt 0:00:40]} 6. O-O {[%emt 0:01:15]} Be7 {[%emt 0:02:56][%cal Bf8e7,Be7f6,Bf6d4,Bd4e3][%mdl 32]} 7. Nc3 {[%emt 0:01:14]} O-O {[%emt 0:02:12]} 8. cxd5 {[%emt 0:00:18]} exd5 {[%emt 0:00:12]} 9. Bg5 {[%emt 0:00:48] 9.dxc5 is the hot move.} c4 {[%emt 0:00:58]} 10. b3 {[%emt 0:04:48]} Qa5 {[%emt 0:17:45]} 11. Bxf6 {[%emt 0:30:04] D34: Tarrasch Defence: 6 g3 Nf6 7 Bg2 Be7.} Bxf6 {[%emt 0:01:51]} 12. Rc1 {[%emt 0:00:18]} Rd8 {[%emt 0:06:00]} 13. bxc4 {[%emt 0:05:03] White is slightly better.} dxc4 {[%emt 0:00:27][%cal Rc6d4]} 14. e3 {[%emt 0:00:16]} Bf5 {[%emt 0:17:49]} 15. Nd2 {[%emt 0:09:11]} Bd3 {[%emt 0:00:37] [#]} 16. Nce4 $146 {[%emt 0:12:08]} ({Predecessor:} 16. Re1 Nxd4 17. Nde4 Ne2+ 18. Rxe2 Bxe4 19. Qe1 Bxc3 20. Rxc3 Bxg2 21. Kxg2 Rac8 22. Qc1 {0-1 Gajdos,D (1947)-Kubik,M (2263) CZE-chT1E 1617 2016 (11.5)}) 16... Bxd4 {[%emt 0:07:26] Strongly threatening ...Bb2. A strong pair of Bishops.} ({Much less strong is} 16... Qxa2 17. Nxf6+ gxf6 18. Qg4+ Kh8 19. Rfd1 $16) 17. Nxc4 {[%emt 0:09:15]} Bxc4 {[%emt 0:01:58][%mdl 64] Remove Defender} 18. Rxc4 {[%emt 0:00:06]} Bxe3 {[%emt 0:06:02][%mdl 64] Discovered Attack} (18... Qxa2 $2 19. Ra4 (19. Rxd4 Nxd4 20. exd4 a5 $16) 19... Qb2 20. exd4 $18) 19. Qb1 {[%emt 0:05:57] White is weak on the dark squares} (19. Qc2 $1 $11 Bb6 20. Nc5 Bxc5 21. Rxc5) 19... Bb6 $1 $17 {[%emt 0:03:12]} 20. Rcc1 {[%emt 0:10:34]} h6 {[%emt 0:04:13]} 21. Kh1 {[%emt 0:04:06]} Nd4 {[%emt 0:09:30]} 22. Qb2 {[%emt 0:02:01]} Rd7 {[%emt 0:02:04]} (22... Rac8 $17 23. h3 Rxc1 24. Rxc1 Nc6) 23. a3 {[%emt 0:00:55]} (23. Nd2 $1 $15) 23... Rad8 {[%emt 0:00:28]} 24. Rfd1 {[%emt 0:01:27]} Qh5 {[%emt 0:00:33] ( -> ...Nf3)} 25. Rd3 {[%emt 0:00:46] Inhibits Nf3.} Nc6 {[%emt 0:02:35]} 26. Rxd7 {[%emt 0:00:34]} Rxd7 {[%emt 0:00:02]} 27. Qc2 {[%emt 0:00:31] Wards off Rd1+} Qa5 {[%emt 0:01:19]} 28. Qb3 {[%emt 0:00:28]} Qe5 {[%emt 0:01:04]} 29. Qc2 {[%emt 0:00:41]} Rd8 {[%emt 0:03:12]} 30. h3 {[%emt 0:00:23]} Nd4 {[%emt 0:00:55] Black is much more active.} 31. Qb2 {[%emt 0:00:36]} f5 {[%emt 0:01:00]} 32. Nd2 {[%emt 0:00:09]} f4 {[%emt 0:00:48]} 33. Nc4 {[%emt 0:00:37] [#]} Qf6 {[%emt 0:03:23]} (33... Qe2 $1 $17 {Threatens to win with ...f3.} 34. gxf4 Qxb2 35. Nxb2 Ne2) 34. Re1 {[%emt 0:00:48] [#]} (34. Nxb6 $11 Qxb6 35. Qxb6 axb6 36. Rd1) 34... fxg3 $1 {[%emt 0:01:24]} ({But not} 34... f3 $6 35. Bf1 $11) 35. fxg3 {[%emt 0:00:09][%cal Oc4b6]} Bc7 {[%emt 0:00:14]} 36. Rf1 {[%emt 0:00:45]} (36. Ne3 $17 Qe5 37. Qa2+ Kh7 38. Qf2) 36... Qg6 $19 {[%emt 0:00:38]} 37. g4 {[%emt 0:00:30]} (37. Qf2 $142) 37... Qe6 {[%emt 0:00:56]} 38. Qc3 $2 {[%emt 0:00:37]} (38. Nd2) 38... Ne2 {[%emt 0:00:26]} 39. Qc2 {[%emt 0:00:32] Weighted Error Value: White=0.43/Black=0.16 (very precise)} 0-1

[Event "European Women-ch 2023"]
[Site "Petrovac"]
[Date "2023.03.25"]
[Round "7.24"]
[White "Recica, Jona"]
[Black "Petrovska, Katerina"]
[Result "0-1"]
[Annotator "TA"]
[ECO "C53"]
[WhiteElo "1231"]
[BlackElo "1907"]
[PlyCount "86"]
[EventDate "2023.03.15"]
[EventType "swiss"]
[EventCountry "MNE"]
[SourceTitle "playchess.com"]
[Source "ChessBase"]
[SourceQuality "1"]
[TimeControl "40/5400+30:1800+30"]

{[%evp 9,86,30,58,12,22,10,22,25,26,19,30,13,66,57,67,61,66,-10,64,-43,-8,-9,0,-95,-90,-76,-50,-349,-330,-316,-308,-419,-270,-350,-286,-299,-285,-362,-372,-452,-456,-466,-447,-416,-447,-539,-536,-517,-506,-525,-489,-579,-552,-593,-584,-585,-581,-541,-548,-633,-610,-660,-654,-887,-889,-1132,-1048,-936,-889,-980,-978,-951,-967,-940,-933,-933,-922,-5231,-820]} 1. e4 {[%emt 0:00:04]} e5 {[%emt 0:00:14]} 2. Nf3 {[%emt 0:00:16]} Nc6 {[%emt 0:00:05]} 3. Bc4 {[%emt 0:00:09]} Bc5 {[%emt 0:00:26]} 4. c3 {[%emt 0:00:48]} Qf6 {[%emt 0:04:42]} 5. d3 {[%emt 0:02:51]} d6 {[%emt 0:05:40]} 6. Nbd2 {[%emt 0:04:19] C53: Giuoco Piano sidelines.} (6. b4 $14 Bb6 7. O-O (7. Bg5 Qg6 $11)) 6... Nge7 {[%emt 0:01:19][%cal Bg8e7,Be7g6,Bg6f4,Bf4h3][%mdl 32]} 7. O-O {[%emt 0:02:26]} h6 {[%emt 0:05:07]} 8. b4 {[%emt 0:09:21] The position is equal.} Bb6 {[%emt 0:00:11]} 9. a4 {[%emt 0:03:58]} a6 {[%emt 0:00:18] [#]} 10. Nb3 $146 {[%emt 0:17:00]} ({Predecessor:} 10. a5 Ba7 11. Re1 g5 12. Re2 Ng6 13. Nf1 Nf4 14. Bxf4 gxf4 15. Kh1 Rg8 16. N1d2 {0-1 Della Morte,G (2368)-Ivanisevic,I (2606) Titled Arena Mar 6th blitz 2021}) 10... g5 {[%emt 0:04:07]} (10... Be6 $11) 11. Be3 $14 {[%emt 0:02:46]} Ng6 {[%emt 0:04:43]} 12. b5 {[%emt 0:10:11]} axb5 {[%emt 0:03:17]} 13. Bxb5 {[%emt 0:00:44]} (13. axb5 $14 Na5 14. Nxa5 Rxa5 15. Nd2) 13... O-O {[%emt 0:04:57]} (13... g4 $11 14. Nfd2 Bxe3 15. Bxc6+ (15. fxe3 Qg5 $11) 15... bxc6 16. fxe3 Qg5) 14. d4 {[%emt 0:02:03]} ({White should try} 14. Bxb6 $14 cxb6 15. Nfd2) 14... Nf4 {[%emt 0:10:35]} (14... Bg4 {simplifies} 15. Bxc6 bxc6 16. h3 Bxf3 17. Qxf3 Qxf3 18. gxf3 f5) 15. d5 {[%emt 0:15:05]} Ne7 {[%emt 0:03:14][%cal Bc6e7,Be7d5,Bd5f6][%mdl 32]} 16. g3 {[%emt 0:03:31]} (16. Bxb6 $11 cxb6 17. Nbd2) 16... Nh3+ $17 {[%emt 0:05:40]} 17. Kg2 {[%emt 0:00:29]} Qg6 {[%emt 0:01:24]} (17... g4 {looks sharper.} 18. Nh4 Ng6 19. Nf5 Bxf5 20. exf5 Qxf5 21. Bxb6 cxb6 22. f3 gxf3+ 23. Qxf3 Qxf3+ 24. Kxf3 Ng5+) 18. Ng1 $2 {[%emt 0:01:27][%mdl 8192] Loses the game.} (18. Bxb6 $15 g4 19. Nfd2 (19. Bxc7 gxf3+ 20. Qxf3 Ng5 $17) 19... cxb6 20. Qe2) 18... Qxe4+ {[%emt 0:09:57]} 19. Qf3 {[%emt 0:02:56]} Qxf3+ {[%emt 0:01:41]} (19... Qxd5 $2 {loses.} 20. Bxb6 Nxg1 21. Qxd5 Nxd5 22. Ba5 $19) 20. Nxf3 {[%emt 0:00:11]} Nxd5 {[%emt 0:02:17]} 21. Bd2 {[%emt 0:01:08]} Kg7 {[%emt 0:05:36]} 22. a5 {[%emt 0:04:13]} Ba7 {[%emt 0:01:05]} 23. c4 {[%emt 0:01:13]} Nf6 {[%emt 0:04:57]} 24. Rad1 {[%emt 0:02:33]} g4 {[%emt 0:01:16]} 25. Ng1 {[%emt 0:00:19]} Nxg1 {[%emt 0:01:33]} 26. Kxg1 {[%emt 0:00:05]} Be6 {[%emt 0:02:21]} 27. a6 {[%emt 0:01:32] Black is clearly winning.} bxa6 {[%emt 0:01:25]} 28. Bxa6 {[%emt 0:00:07] [#]} Bxf2+ $1 {[%emt 0:01:52][%mdl 576] Discovered Attack} 29. Rxf2 {[%emt 0:00:27]} Rxa6 {[%emt 0:00:03]} 30. Bxh6+ {[%emt 0:01:17]} Kxh6 {[%emt 0:00:25]} 31. Rxf6+ {[%emt 0:00:04]} Kg7 {[%emt 0:00:07]} 32. Rf2 {[%emt 0:00:46]} Bxc4 {[%emt 0:00:07]} 33. Nd2 {[%emt 0:00:25]} Be6 {[%emt 0:00:29]} 34. Rc1 {[%emt 0:00:28]} c5 {[%emt 0:00:48][%cal Bc7c5,Bc5c4,Bc4c3,Bc3c2][%mdl 32]} 35. Ne4 {[%emt 0:00:12]} c4 {[%emt 0:00:39]} 36. Nd2 {[%emt 0:01:53]} Rc8 {[%emt 0:00:59]} 37. Re2 {[%emt 0:01:33]} Ra2 {[%emt 0:02:02] [#] aiming for ...c3.} 38. Rf2 {[%emt 0:01:00]} c3 {[%emt 0:00:48]} 39. Ne4 {[%emt 0:00:45]} Rxf2 {[%emt 0:01:41]} 40. Kxf2 {[%emt 0:00:00]} c2 {[%emt 0:00:00] ...d5 is the strong threat.} 41. Nxd6 {[%emt 0:00:46]} Rc6 {[%emt 0:00:57]} 42. Nb5 {[%emt 0:00:32]} Bf5 {[%emt 0:01:31] Strongly threatening ...Bd3.} 43. Na3 {[%emt 0:00:24]} Rc3 {[%emt 0:00:05] Weighted Error Value: White=0.65/Black=0.20 (precise)} (43... Bd3 $142 44. Kg1 Rc3 45. Nxc2 Rxc2 46. Rxc2 Bxc2) 0-1

[Event "European Women-ch 2023"]
[Site "Petrovac"]
[Date "2023.03.25"]
[Round "7.25"]
[White "Sieber, Fiona"]
[Black "Tsotsonava, Elene"]
[Result "1-0"]
[Annotator "TA"]
[ECO "B47"]
[WhiteElo "2217"]
[BlackElo "2030"]
[PlyCount "77"]
[EventDate "2023.03.15"]
[EventType "swiss"]
[EventCountry "MNE"]
[SourceTitle "playchess.com"]
[Source "ChessBase"]
[SourceQuality "1"]
[TimeControl "40/5400+30:1800+30"]

{[%evp 13,77,26,32,38,72,49,107,101,100,106,110,87,133,127,297,178,187,134,233,235,239,234,239,240,266,266,461,443,731,734,774,794,788,784,1029,1033,1014,474,1035,1034,1032,1029,1020,1013,937,832,1106,1097,1093,1086,1054,1027,1724,1691,1673,1697,1531,1499,1743,1679,2497,1599,29937,5489,5406,1628]} 1. e4 {[%emt 0:00:02]} c5 {[%emt 0:00:04]} 2. Nf3 {[%emt 0:00:03]} Nc6 {[%emt 0:00:05]} 3. Nc3 {[%emt 0:00:04]} e6 {[%emt 0:01:47]} 4. d4 {[%emt 0:00:07]} cxd4 {[%emt 0:00:05]} 5. Nxd4 {[%emt 0:00:03]} Qc7 {[%emt 0:00:06]} 6. g3 {[%emt 0:00:05]} a6 {[%emt 0:00:14]} 7. Bg2 {[%emt 0:00:03]} d6 {[%emt 0:04:21]} 8. Nxc6 {[%emt 0:00:34] B47: Sicilian: Taimanov: 5 Nc3 Qc7 6 f4, 6 g3 and 6 Be2.} Qxc6 {[%emt 0:20:13]} 9. O-O {[%emt 0:00:20] [#]} Ne7 $146 {[%emt 0:01:28]} ({Better is} 9... Bd7 $14) ({Predecessor:} 9... Qc7 10. Bf4 Bd7 11. Qd2 Bc6 12. Rfe1 Be7 13. Rad1 Rd8 14. Qc1 b5 15. a3 Qb6 {0-1 Sklavounou,I (1226)-Nasos,V (1803) GRE-chT U16 Thessaloniki 2019 (4.2)}) 10. Be3 $16 {[%emt 0:21:08] White is better.} b5 {[%emt 0:05:48]} 11. a4 {[%emt 0:07:41] axb5 is the strong threat. White is more active.} b4 {[%emt 0:02:06]} 12. Ne2 {[%emt 0:00:11]} Bb7 {[%emt 0:03:57]} (12... Qd7 $142) 13. c3 {[%emt 0:02:28]} d5 $2 {[%emt 0:14:13]} (13... bxc3 $16 14. bxc3 (14. Nxc3 h5 $16) 14... Qc8) 14. cxb4 {[%emt 0:07:59]} (14. exd5 $142 Nxd5 15. Nf4) 14... dxe4 $18 {[%emt 0:01:25] [#]} 15. Rc1 {[%emt 0:00:59]} (15. b5 $1 $18 {[%cal Rb5c6]} Qc8 16. Rc1) 15... Qd5 {[%emt 0:03:14]} (15... Qd7 $16 {was necessary.}) 16. Rc7 {[%emt 0:05:07]} Rc8 {[%emt 0:09:43]} 17. Qc2 {[%emt 0:04:26]} Rxc7 {[%emt 0:03:18]} 18. Qxc7 {[%emt 0:00:02] Hoping for Rc1.} Qd7 {[%emt 0:03:02]} 19. Rc1 {[%emt 0:02:40] Qb8+ would be deadly.} Nc6 {[%emt 0:08:08] [#] Wards off Qb8+} (19... Nc8 20. Bxe4 Qxc7 21. Rxc7 Bxe4) 20. Qb6 $1 {[%emt 0:00:39]} Ne5 {[%emt 0:05:50] [#]} (20... Nxb4 $2 21. Rc7 Qd1+ 22. Bf1 $18) (20... Be7 $142 21. Bxe4 Nd8) 21. Bxe4 $1 {[%emt 0:09:50][%mdl 512]} Bxe4 {[%emt 0:04:43]} (21... Be7 22. Bxb7) 22. Qb8+ {[%emt 0:00:04]} (22. Qxa6 $2 {perishes.} Bb7 23. Qb6 Nf3+ 24. Kg2 Bd6 $19) 22... Qd8 {[%emt 0:00:11]} 23. Rc8 {[%emt 0:00:26]} Nf3+ {[%emt 0:00:03]} 24. Kg2 {[%emt 0:00:14]} Be7 {[%emt 0:00:48]} 25. Rxd8+ {[%emt 0:04:38]} Bxd8 {[%emt 0:00:01]} 26. Nc3 {[%emt 0:00:12]} Nh4+ {[%emt 0:00:40]} 27. Kg1 {[%emt 0:03:33]} Nf3+ {[%emt 0:00:13]} 28. Kh1 {[%emt 0:00:48]} Bf5 {[%emt 0:02:38]} 29. Bb6 {[%emt 0:01:43][%csl Gb6][%cal Rb8d8]} Ke7 {[%emt 0:01:10]} 30. Qb7+ {[%emt 0:00:16]} Kf6 {[%emt 0:00:17]} 31. Bxd8+ {[%emt 0:00:14]} Rxd8 {[%emt 0:00:02]} 32. Qxf3 {[%emt 0:00:07]} Rd3 {[%emt 0:00:13]} 33. Ne4+ {[%emt 0:06:23]} Ke5 {[%emt 0:00:03]} 34. Qf4+ {[%emt 0:00:52]} ({Weaker is} 34. Qxd3 Bxe4+ $16) 34... Kd5 {[%emt 0:00:07]} 35. Nc3+ {[%emt 0:01:27]} Kc6 {[%emt 0:00:05]} 36. g4 {[%emt 0:01:32]} Bg6 {[%emt 0:00:14]} 37. Qc4+ {[%emt 0:01:45]} Kb7 {[%emt 0:00:03]} 38. b5 {[%emt 0:00:27]} axb5 {[%emt 0:00:33]} 39. Qxb5+ {[%emt 0:00:18] Black did not feel at home in the position after the opening.   Weighted Error Value: White=0.15 (very precise) /Black=0.58} 1-0